[Event "TCEC Season 13 - Division 4"]
[Site "http://tcec.chessdom.com"]
[Date "2018.08.04"]
[Round "6.4"]
[White "Ivanhoe 999946h"]
[Black "LCZero 16.10161"]
[Result "1/2-1/2"]
[ECO "A28"]
[WhiteElo "3116"]
[BlackElo "3219"]
[PlyCount "120"]
[EventDate "2018.??.??"]
[TimeControl "1800+10"]

{WhiteEngineOptions: Protocol=uci; Hash=16384; Threads=43; RobboTripleBaseDirectory=C:/TripleBases/; OwnBook=false; Ponder=false;, BlackEngineOptions: Protocol=uci; Move time overhead in milliseconds=2000;} 1. c4 {book} e5 {book} 2. Nc3 {book} Nf6 {book} 3. Nf3 {[%eval 11,23] [%emt 0:00:54]} Nc6 {[%eval 28,5] [%emt 0:00:52]} 4. e3 {[%eval 7,22] [%emt 0:02:18]} d5 {[%eval 33,5] [%emt 0:02:02]} 5. cxd5 {[%eval 26,21] [%emt 0:00:29]} Nxd5 {[%eval 34,6] [%emt 0:00:19]} 6. Bb5 {[%eval 29,22] [%emt 0:00:46]} Nxc3 {[%eval 34,6] [%emt 0:00:15]} 7. bxc3 {[%eval 19,22] [%emt 0:00:22]} Bd7 {[%eval 32,5] [%emt 0:00:58]} 8. Qc2 {[%eval 37,22] [%emt 0:00:43]} Bd6 {[%eval 11,5] [%emt 0:00:49]} 9. O-O {[%eval 29,22] [%emt 0:02:27]} O-O {[%eval 7,5] [%emt 0:00:37]} 10. Rb1 {[%eval 13,21] [%emt 0:01:26]} Bg4 {[%eval 9,4] [%emt 0:00:16]} 11. Be2 {[%eval 23,20] [%emt 0:00:52]} b6 {[%eval 10,4] [%emt 0:00:21]} 12. Bb2 {[%eval 16,21] [%emt 0:04:27]} Qe7 {[%eval 5,5] [%emt 0:01:19]} 13. Qe4 {[%eval 10,20] [%emt 0:00:56]} Bd7 {[%eval 14,5] [%emt 0:00:48]} 14. Bb5 {[%eval 9,22] [%emt 0:01:05]} Qe8 {[%eval 44,4] [%emt 0:00:48]} 15. Ng5 {[%eval 11,17] [%emt 0:00:37]} f5 {[%eval 45,5] [%emt 0:00:36]} 16. Bc4+ {[%eval 19,18] [%emt 0:00:27]} Kh8 {[%eval 44,5] [%emt 0:00:34]} 17. Qd5 {[%eval 9,23] [%emt 0:01:28]} Na5 {[%eval 43,4] [%emt 0:00:08]} 18. Nf7+ {[%eval 9,22] [%emt 0:00:01]} Rxf7 {[%eval 42,6] [%emt 0:00:04]} 19. Qxf7 {[%eval 13,24] [%emt 0:00:11]} Nxc4 {[%eval 44,4] [%emt 0:00:04]} 20. Qxc4 {[%eval 13,23] [%emt 0:00:00]} Bb5 {[%eval 45,4] [%emt 0:00:03]} 21. Qb3 {[%eval 11,23] [%emt 0:00:34]} Bxf1 {[%eval 56,4] [%emt 0:00:39]} 22. Rxf1 {[%eval 12,23] [%emt 0:01:07]} e4 {[%eval 59,4] [%emt 0:00:37]} 23. Qd5 {[%eval 20,21] [%emt 0:00:24]} Qg8 {[%eval 60,4] [%emt 0:00:03]} 24. Qxf5 {[%eval 0,23] [%emt 0:00:14]} Qc4 {[%eval 71,3] [%emt 0:00:48]} 25. g3 {[%eval 0,25] [%emt 0:00:41]} Rf8 {[%eval 43,4] [%emt 0:00:49]} 26. Qg4 {[%eval 0,23] [%emt 0:00:00]} Qxa2 {[%eval 52,4] [%emt 0:01:24]} 27. Ba1 {[%eval 23,25] [%emt 0:00:58]} Qc4 {[%eval 52,5] [%emt 0:00:03]} 28. f3 {[%eval 25,25] [%emt 0:00:57]} Re8 {[%eval 52,3] [%emt 0:00:00]} 29. Qd7 {[%eval 25,24] [%emt 0:00:29]} Re7 {[%eval 52,4] [%emt 0:00:22]} 30. Qc8+ {[%eval 0,24] [%emt 0:00:29]} Qg8 {[%eval 51,6] [%emt 0:00:05]} 31. Qa6 {[%eval 0,25] [%emt 0:00:36]} exf3 {[%eval 46,5] [%emt 0:00:19]} 32. Rxf3 {[%eval 0,25] [%emt 0:00:18]} Re5 {[%eval 59,4] [%emt 0:00:44]} 33. Rf1 {[%eval 0,25] [%emt 0:00:36]} h6 {[%eval 62,4] [%emt 0:00:48]} 34. Qxa7 {[%eval 0,24] [%emt 0:00:27]} Ra5 {[%eval 62,4] [%emt 0:00:12]} 35. Qb7 {[%eval 0,22] [%emt 0:00:00]} Qc4 {[%eval 63,4] [%emt 0:00:04]} 36. Qc8+ {[%eval 0,24] [%emt 0:00:21]} Kh7 {[%eval 62,5] [%emt 0:00:05]} 37. Qh3 {[%eval 0,26] [%emt 0:00:47]} Rb5 {[%eval 64,4] [%emt 0:00:27]} 38. Qg2 {[%eval 0,24] [%emt 0:00:24]} Qd3 {[%eval 65,4] [%emt 0:00:21]} 39. Qf2 {[%eval 0,24] [%emt 0:00:25]} Rg5 {[%eval 87,4] [%emt 0:00:55]} 40. Qe1 {[%eval 0,24] [%emt 0:00:22]} Kg8 {[%eval 96,4] [%emt 0:00:47]} 41. Rf2 {[%eval 0,23] [%emt 0:00:15]} Rb5 {[%eval -51,4] [%emt 0:00:51]} 42. Rf1 {[%eval 0,21] [%emt 0:00:00]} h5 {[%eval -55,4] [%emt 0:00:17]} 43. Qf2 {[%eval 0,24] [%emt 0:00:26]} Rg5 {[%eval 62,4] [%emt 0:01:06]} 44. Qf7+ {[%eval 0,24] [%emt 0:00:22]} Kh7 {[%eval 47,5] [%emt 0:00:26]} 45. c4 {[%eval 0,25] [%emt 0:00:39]} Qxd2 {[%eval 44,4] [%emt 0:00:07]} 46. Qf3 {[%eval 0,25] [%emt 0:00:26]} Kh6 {[%eval 46,4] [%emt 0:00:51]} 47. Qe4 {[%eval 0,24] [%emt 0:00:23]} Qe2 {[%eval 35,4] [%emt 0:01:12]} 48. Qe8 {[%eval 0,23] [%emt 0:00:21]} Kh7 {[%eval 45,3] [%emt 0:01:00]} 49. Qe4+ {[%eval 0,22] [%emt 0:00:06]} Kg8 {[%eval 41,4] [%emt 0:00:55]} 50. Qa8+ {[%eval 0,23] [%emt 0:00:17]} Kh7 {[%eval 33,5] [%emt 0:00:37]} 51. Qe4+ {[%eval 0,22] [%emt 0:00:00]} Rg6 {[%eval 33,4] [%emt 0:01:17]} 52. Be5 {[%eval 0,24] [%emt 0:00:14]} Bxe5 {[%eval 28,4] [%emt 0:00:13]} 53. Qxe5 {[%eval 0,24] [%emt 0:00:07]} Rd6 {[%eval 21,4] [%emt 0:00:33]} 54. Qf5+ {[%eval 0,24] [%emt 0:00:11]} Kh8 {[%eval 35,5] [%emt 0:00:43]} 55. Qf8+ {[%eval 0,23] [%emt 0:00:08]} Kh7 {[%eval 50,6] [%emt 0:00:00]} 56. Qf5+ {[%eval 0,27] [%emt 0:00:10]} Kh6 {[%eval 2,6] [%emt 0:00:49]} 57. Qf4+ {[%eval 0,25] [%emt 0:00:06]} Kg6 {[%eval 1,4] [%emt 0:00:30]} 58. Qe4+ {[%eval 0,25] [%emt 0:00:11]} Kh6 {[%eval 1,6] [%emt 0:00:34]} 59. Qf4+ {[%eval 0,26] [%emt 0:00:06]} Kg6 {[%eval 1,5] [%emt 0:00:36]} 60. Qe4+ {[%eval 0,26] [%emt 0:00:06]} Kh6 {[%eval 0,234] [%emt 0:00:44] termination reason: TCEC draw rule} 1/2-1/2

[Event "TCEC Season 13 - Division 4"]
[Site "http://tcec.chessdom.com"]
[Date "2018.08.05"]
[Round "7.2"]
[White "Rodent III 0.258"]
[Black "Ivanhoe 999946h"]
[Result "1/2-1/2"]
[ECO "B50"]
[WhiteElo "3030"]
[BlackElo "3116"]
[PlyCount "104"]
[EventDate "2018.??.??"]
[TimeControl "1800+10"]

{WhiteEngineOptions: Protocol=uci; Protocol=UCI; Threads=16; Hash=4096; UseBook=false; OwnBook=false; Ponder=false;, BlackEngineOptions: Protocol=uci; Hash=16384; Threads=43; RobboTripleBaseDirectory=C:/TripleBases/; OwnBook=false; Ponder=false;} 1. e4 {book} c5 {book} 2. Nf3 {book} d6 {book} 3. Nc3 {[%eval 18,23] [%emt 0:00:54]} Nc6 {[%eval 16,22] [%emt 0:01:05]} 4. Bb5 {[%eval 20,24] [%emt 0:00:53]} e5 {[%eval 9,23] [%emt 0:02:02]} 5. d3 {[%eval 18,26] [%emt 0:00:52]} Be7 {[%eval 9,23] [%emt 0:00:53]} 6. O-O {[%eval 20,26] [%emt 0:00:51]} h6 {[%eval 10,22] [%emt 0:00:45]} 7. a4 {[%eval 16,26] [%emt 0:00:50]} Nf6 {[%eval 6,22] [%emt 0:00:30]} 8. Bc4 {[%eval 23,27] [%emt 0:00:49]} O-O {[%eval 12,22] [%emt 0:02:04]} 9. Bd2 {[%eval 21,26] [%emt 0:00:48]} Be6 {[%eval 3,22] [%emt 0:01:42]} 10. Nd5 {[%eval 25,25] [%emt 0:00:47]} Qd7 {[%eval 7,22] [%emt 0:00:41]} 11. h3 {[%eval 29,24] [%emt 0:00:46]} Bd8 {[%eval 4,22] [%emt 0:00:56]} 12. a5 {[%eval 26,25] [%emt 0:00:45]} Bxd5 {[%eval 0,23] [%emt 0:00:49]} 13. Bxd5 {[%eval 12,27] [%emt 0:00:44]} Nxd5 {[%eval 0,23] [%emt 0:00:35]} 14. exd5 {[%eval 12,28] [%emt 0:00:43]} Nb4 {[%eval 1,24] [%emt 0:00:36]} 15. Bxb4 {[%eval 14,27] [%emt 0:00:43]} cxb4 {[%eval 1,22] [%emt 0:00:00]} 16. c3 {[%eval 15,27] [%emt 0:00:42]} bxc3 {[%eval 4,23] [%emt 0:00:21]} 17. bxc3 {[%eval 0,30] [%emt 0:00:41]} Rc8 {[%eval 3,24] [%emt 0:00:39]} 18. c4 {[%eval 0,30] [%emt 0:00:40]} Rc5 {[%eval 20,23] [%emt 0:00:37]} 19. Qd2 {[%eval 4,30] [%emt 0:00:39]} Re8 {[%eval 15,23] [%emt 0:00:25]} 20. Rfe1 {[%eval 0,28] [%emt 0:00:39]} e4 {[%eval 10,23] [%emt 0:00:17]} 21. Rxe4 {[%eval 0,31] [%emt 0:00:38]} Rxe4 {[%eval 10,21] [%emt 0:00:00]} 22. dxe4 {[%eval 0,32] [%emt 0:00:37]} Rxc4 {[%eval 7,23] [%emt 0:00:26]} 23. Qe3 {[%eval 0,31] [%emt 0:00:36]} Rc5 {[%eval 15,23] [%emt 0:00:32]} 24. a6 {[%eval 0,27] [%emt 0:00:36]} Bb6 {[%eval 21,23] [%emt 0:01:02]} 25. axb7 {[%eval 30,28] [%emt 0:00:35]} Qxb7 {[%eval 21,22] [%emt 0:00:00]} 26. Qe2 {[%eval 37,28] [%emt 0:00:34]} Qc7 {[%eval 10,22] [%emt 0:01:04]} 27. Ra2 {[%eval 43,28] [%emt 0:00:34]} Rc1+ {[%eval 9,22] [%emt 0:00:33]} 28. Kh2 {[%eval 37,29] [%emt 0:00:33]} a5 {[%eval 22,24] [%emt 0:03:51]} 29. Qb5 {[%eval 17,27] [%emt 0:00:33]} Kh7 {[%eval 15,24] [%emt 0:00:22]} 30. Qb2 {[%eval 8,25] [%emt 0:00:32]} Rc3 {[%eval 25,23] [%emt 0:00:58]} 31. Qb1 {[%eval 39,26] [%emt 0:00:32]} g6 {[%eval 24,23] [%emt 0:00:26]} 32. h4 {[%eval 15,24] [%emt 0:00:31]} Rc4 {[%eval 37,21] [%emt 0:00:12]} 33. Rb2 {[%eval 0,28] [%emt 0:00:30]} Rc1 {[%eval 22,22] [%emt 0:00:46]} 34. Qd3 {[%eval 0,29] [%emt 0:00:30]} Rh1+ {[%eval 10,22] [%emt 0:00:43]} 35. Kxh1 {[%eval 0,28] [%emt 0:00:29]} Qc1+ {[%eval 10,21] [%emt 0:00:00]} 36. Kh2 {[%eval 0,29] [%emt 0:00:29]} Qxb2 {[%eval 3,23] [%emt 0:00:19]} 37. h5 {[%eval 0,29] [%emt 0:00:28]} Qg7 {[%eval 3,22] [%emt 0:00:19]} 38. hxg6+ {[%eval 0,27] [%emt 0:00:28]} fxg6 {[%eval 3,22] [%emt 0:00:08]} 39. e5 {[%eval 0,29] [%emt 0:00:27]} dxe5 {[%eval 0,20] [%emt 0:00:09]} 40. d6 {[%eval 0,30] [%emt 0:00:27]} Bxf2 {[%eval 0,23] [%emt 0:00:38]} 41. Qe4 {[%eval 0,30] [%emt 0:00:27]} Bc5 {[%eval 0,23] [%emt 0:00:19]} 42. Qd5 {[%eval 0,30] [%emt 0:00:26]} Be3 {[%eval 0,24] [%emt 0:00:28]} 43. g3 {[%eval 0,28] [%emt 0:00:26]} a4 {[%eval 0,23] [%emt 0:00:22]} 44. d7 {[%eval 0,34] [%emt 0:00:25]} Bb6 {[%eval 0,22] [%emt 0:00:00]} 45. d8=R {[%eval 0,34] [%emt 0:00:25]} Bxd8 {[%eval 0,24] [%emt 0:00:26]} 46. Qxd8 {[%eval 0,35] [%emt 0:00:25]} e4 {[%eval 0,25] [%emt 0:00:25]} 47. Nd2 {[%eval 0,34] [%emt 0:00:24]} e3 {[%eval 0,26] [%emt 0:00:29]} 48. Ne4 {[%eval 0,35] [%emt 0:00:24]} Qb2+ {[%eval 0,27] [%emt 0:00:38]} 49. Kh3 {[%eval 0,35] [%emt 0:00:23]} Qb7 {[%eval 0,28] [%emt 0:00:44]} 50. Nf6+ {[%eval 0,38] [%emt 0:00:23]} Kg7 {[%eval 0,26] [%emt 0:00:00]} 51. Ne8+ {[%eval 0,39] [%emt 0:00:23]} Kh7 {[%eval 0,29] [%emt 0:00:20]} 52. Nf6+ {[%eval 0,44] [%emt 0:00:22]} Kg7 {[%eval 0,125] [%emt 0:00:00] termination reason: TCEC draw rule} 1/2-1/2